Cogmind - Beta 14 @@@ ROGUE MODE // 2024.11.19 @ 11:00:47 Player: Fangrelle Result: Destroyed by G-47 Trooper with Particle Gun Performance ------------- Evolutions (2) 1000 Regions Visited (5) 1000 Robots Destroyed (67) 335 Value Destroyed (1456) 1456 Prototype IDs (29) 580 Alien Tech Used (0) 0 Bonus (380) 380 TOTAL SCORE: 4751 Bonus ------- Follower Combat Kills 80 Aligned with FarCom 300 Cogmind --------- Core Integrity 0/550 Matter 300/300 Energy 100/100 System Corruption 0% Temperature Cool (9) Movement Core (700) Ox13 Location -8/Materials Parts ------- > --- POWER (1) -------- (None) > --- PROPULSION (2) --- (None) > --- UTILITY (5) ------ High-capacity Storage Unit Advanced Visual Processing Unit Microactuators Hacking Suite > --- WEAPON (3) ------- (None) > --- INVENTORY (20) --- Faulty Improved Flight Unit Faulty Improved Flight Unit Improved Flight Unit Improved Flight Unit Improved Flight Unit Surge Thruster Machine Analyzer Improved Signal Interpreter Advanced Targeting Computer Improved Utility Shielding Improved Light Armor Plating Improved Trap Extractor (0/6) Improved Datajack Deploy-a-Sentry Deploy-a-Sentry Peak State ------------ > --- POWER ------------ Improved Ion Engine > --- PROPULSION ------- Carbon-fiber Leg Armored Wheel > --- UTILITY ---------- High-capacity Storage Unit Advanced Visual Processing Unit Microactuators Hardlight Generator Hacking Suite > --- WEAPON ----------- Heavy Particle Gun Katana Katana > --- INVENTORY -------- Improved Flight Unit Improved Flight Unit Improved Flight Unit Improved Flight Unit Improved Flight Unit Improved Flight Unit Surge Thruster Machine Analyzer Signal Interpreter Salvage Targeting Computer Advanced Targeting Computer Improved Utility Shielding Improved Trap Extractor Heavy EM Shotgun Heavy EM Shotgun Improved Datajack Axe Deploy-a-Sentry Deploy-a-Sentry Deploy-a-Sentry [Rating: 38] Favorites ----------- Power Light Nuclear Core Engine Improved Ion Engine Power Core Light Nuclear Core Propulsion Light Treads Treads Light Treads Leg Carbon-fiber Leg Wheel Armored Wheel Hover Unit Aerolev Unit Flight Unit Improved Flight Unit Utility High-capacity Storage Unit Device Microactuators Storage High-capacity Storage Unit Processor Visual Processing Unit Hackware Hacking Suite Protection Hardened Light Armor Plating Weapon Katana Energy Gun EM Pulse Gun Ballistic Gun Assault Rifle Launcher Advanced EMP Blaster Special Weapon Mining Laser Slashing Weapon Katana Special Melee Weapon Datajack Build | -11 -10 -10 -10 -9 -8 ------- Run | Yrd Mat Min Exi Min Mat Slots Evolved 4 | . . . . . 4 Power . | . . . . . . Propulsion . | . . . . . . Utility 3 | . . . . . 3 Weapon 1 | . . . . . 1 Parts Attached 67 | . 25 1 2 4 35 Power 5 | . 2 1 . 1 1 Engine 3 | . 1 . . 1 1 Core 2 | . 1 1 . . . Reactor . | . . . . . . Propulsion 14 | . 5 . . 1 8 Treads 5 | . 5 . . . . Leg 3 | . . . . 1 2 Wheel 3 | . . . . . 3 Hover 1 | . . . . . 1 Flight 2 | . . . . . 2 Utility 15 | . 5 . . . 10 Device 6 | . 1 . . . 5 Storage 2 | . 2 . . . . Processor 2 | . 1 . . . 1 Hackware 1 | . . . . . 1 Protection 4 | . 1 . . . 3 Artifact . | . . . . . . Weapon 33 | . 13 . 2 2 16 Energy Gun 10 | . 3 . . 2 5 Energy Cannon . | . . . . . . Ballistic Gun 7 | . 7 . . . . Ballistic Cannon . | . . . . . . Launcher 1 | . . . . . 1 Special Weapon 3 | . 3 . . . . Impact Weapon . | . . . . . . Slashing Weapon 10 | . . . 1 . 9 Piercing Weapon . | . . . . . . Special Melee Weapon 2 | . . . 1 . 1 Unidentified Prototypes 6 | . . . . . 6 Parts Lost 17 | . 2 . . 4 11 Power 2 | . . . . 1 1 Propulsion 6 | . 1 . . 2 3 Utility 2 | . 1 . . . 1 Weapon 7 | . . . . 1 6 Highest Loss Streak 9 | . 1 . . 4 9 To Critical Strikes . | . . . . . . Average Slot Usage (%) 93 | . 97 100 76 86 95 Engine 4 | . 1 . . 12 8 Core 7 | . 12 14 14 1 . Treads 15 | . 27 28 28 3 . Leg 3 | . . . . 12 6 Wheel 3 | . . . . . 10 Device 5 | . . . . . 15 Storage 12 | . 14 14 14 14 9 Processor 11 | . 11 14 14 14 9 Hackware 3 | . . . . . 8 Energy Gun 1 | . 1 . . 12 . Ballistic Gun 10 | . 21 28 . . . Special Weapon 1 | . 4 . . . . Slashing Weapon 10 | . . . 2 14 24 Peak Build Rating 38 | . 11 13 17 17 38 Average Rating 19 | . 10 12 12 16 33 On Entrance 11 | 6 6 11 11 17 16 Naked Turns . | . . . . . . Heaviest Build 61 | 11 49 49 48 49 61 Greatest Support 40 | 20 40 40 40 40 22 Greatest Overweight (x) 16 | . 1 1 1 16 11 Average Overweight (x) 2 | . . 1 1 2 4 Largest Inventory Capacity 20 | . 20 20 20 20 20 Average Capacity 18 | . 14 20 20 20 20 Most Carried 20 | . 15 20 20 20 20 Average Carried 17 | . 12 18 19 18 19 Final Capacity 20 | 8 20 20 20 20 20 Final Carried 20 | 6 15 19 20 19 15 Class Distribution -------------------- 44% | Scavenger-Mutant 30% | Gladiator 24% | Mutant Dominant Class ---------------- Mutant | -10/Materials Scavenger-Mutant | -10/Mines Scavenger-Mutant | -10/Exiles Mutant | -9/Mines Gladiator | -8/Materials Resources | -11 -10 -10 -10 -9 -8 ----------- Run | Yrd Mat Min Exi Min Mat Matter Collected 1266 | 200 571 111 . 66 318 Remotely . | . . . . . . Salvage Created 2265 | . 682 224 . 134 1225 Parts 161 | . 48 23 . 14 76 Haulers Intercepted 6 | . 2 . . . 4 Recyclers Shooed 1 | . 1 . . . . Parts Field Recycled . | . . . . . . Retrieved Matter . | . . . . . . Parts Self-Destructed . | . . . . . . Prevented . | . . . . . . Kills | -11 -10 -10 -10 -9 -8 ------- Run | Yrd Mat Min Exi Min Mat Combat Hostiles Destroyed 43 | . 13 7 . 4 19 Melee 22 | . . . . 3 19 Guns 21 | . 13 7 . 1 . Classes Destroyed 10 | . 6 1 . 1 2 Worker 7 | . 1 2 . 1 3 Builder 2 | . . 1 . . 1 Tunneler 2 | . . . . 1 1 Hauler 6 | . 2 . . . 4 Recycler 2 | . 1 . . . 1 Mechanic 1 | . . . . . 1 Watcher 4 | . 3 . . . 1 Swarmer 15 | . 3 5 . 2 5 Grunt 19 | . 10 2 . 2 5 Sentry 9 | . . . . . 9 Best Kill Streak 4 | . 3 3 . 2 4 Combat Bots Only 3 | . 3 3 . 2 3 Max Kills in Single Turn 2 | . 1 2 . 1 1 Gunslinging . | . . . . . . Exploded . | . . . . . . Melee 1 | . . . . 1 1 Uniques/NPCs Destroyed . | . . . . . . Combat | -11 -10 -10 -10 -9 -8 -------- Run | Yrd Mat Min Exi Min Mat Hostile Shots Fired 307 | . 83 31 . 40 153 Missed 81 | . 28 9 . 11 33 Damage Taken 2959 | . 627 239 . 351 1742 Core 786 | . 104 7 . 123 552 Absorbed by Shields 56 | . . . . . 56 Redirected to Shielding 20 | . . . . . 20 Regen/Repaired (Parts) 130 | . 89 . . . 41 Core Remaining (%) 53 | 100 . . . 6 . Volleys Fired 109 | . 93 13 . 2 1 Largest 2 | . 2 2 . 1 2 Hottest 100 | . 100 40 . 40 100 Shots Fired 193 | . 162 27 . 2 2 Gun 169 | . 138 27 . 2 2 Cannon . | . . . . . . Launcher . | . . . . . . Special 24 | . 24 . . . . Kinetic 143 | . 116 27 . . . Thermal 24 | . 24 . . . . Explosive . | . . . . . . Electromagnetic 26 | . 22 . . 2 2 Robot Hit Streak 12 | . 7 12 . 1 3 Robot Miss Streak 5 | . 5 3 . 1 2 Penetration Max . | . . . . . . Secondary Targets 2 | . 1 1 . . . Max Gunslinging Chain 1 | . 1 1 . . . Shots Hit Robots 178 | . 84 15 . 9 70 Core Hits 81 | . 35 14 . 5 27 Critical Kills . | . . . . . . Critical Parts Destroyed . | . . . . . . Critical Strikes 8 | . . . . 1 7 Sever 8 | . . . . 1 7 Melee Attacks 123 | . . . . 10 113 Impact . | . . . . . . Slashing 122 | . . . . 9 113 Piercing . | . . . . . . Sneak Attacks 17 | . . . . 3 14 Combat Hostiles 1 | . . . . 1 . Follow-up Attacks 16 | . . . . . 16 Damage Inflicted 4210 | . 1068 242 . 297 2603 Guns 1320 | . 1052 226 . 15 27 Cannons . | . . . . . . Explosions . | . . . . . . Melee 2854 | . . . . 280 2574 Ramming 36 | . 16 16 . 2 2 Kinetic 1107 | . 881 226 . . . Thermal . | . . . . . . Explosive . | . . . . . . Electromagnetic 213 | . 171 . . 15 27 Impact . | . . . . . . Slashing 2854 | . . . . 280 2574 Piercing . | . . . . . . Highest Corruption 1 | . . 1 1 1 . Average Corruption 1 | . . 1 1 1 . Corruption Purged . | . . . . . . Corruption Blocked . | . . . . . . Effects 28 | . . 15 4 9 . Message Errors 10 | . . 4 2 4 . Matter Fused 5 | . . 2 1 2 . Heat Flow Errors 4 | . . 3 . 1 . Energy Discharges 1 | . . . . 1 . Parts Fused 1 | . . . . 1 . Data Loss (minor) 3 | . . 2 1 . . Data Loss (major) 3 | . . 3 . . . Misfires 1 | . . 1 . . . Overload Shots . | . . . . . . Overflow Damage 198 | . . . . 24 174 Projectiles . | . . . . . . Explosions . | . . . . . . Melee 198 | . . . . 24 174 Knockbacks . | . . . . . . Impact . | . . . . . . Kinetic . | . . . . . . Secondary . | . . . . . . Self-Inflicted Damage . | . . . . . . Shots . | . . . . . . Rammed 12 | . 3 7 . . 2 Targets Rammed 15 | . 4 8 . 1 2 Kicked 1 | . . . . 1 . Crushed 2 | . 1 1 . . . Highest Temperature 315 | . 315 276 . 121 45 Average Temperature 79 | . 76 107 . 54 16 Received Heat Transfer 1153 | . 339 33 . 114 667 Effects 1 | . 1 . . . . Interference 1 | . 1 . . . . Siege Activations . | . . . . . . Robots Corrupted . | . . . . . . Combat Hostiles . | . . . . . . Parts Fried 2 | . 2 . . . . Impact Corruptions . | . . . . . . Robots Melted . | . . . . . . Combat Hostiles . | . . . . . . Parts Melted . | . . . . . . Heat Transferred . | . . . . . . Parts Sabotaged . | . . . . . . Parts Stolen . | . . . . . . Parts Stripped . | . . . . . . Power Chain Reactions . | . . . . . . Alert | -11 -10 -10 -10 -9 -8 ------- Run | Yrd Mat Min Exi Min Mat Peak Influence 202 | . 202 155 . 60 193 Initial 14 | . . 14 . . . Average 46 | . 43 26 . 21 64 Maximum Alert Level 1 | . 1 . . . . Low Security (%) 99 | . 99 100 . 100 100 Level 1 . | . . . . . . Level 2 . | . . . . . . Level 3 . | . . . . . . Level 4 . | . . . . . . Level 5 . | . . . . . . High Security . | . . . . . . Max Security . | . . . . . . Squads Dispatched 10 | . 2 . . . 8 Investigation 3 | . 2 . . . 1 Extermination . | . . . . . . Reinforcement 1 | . . . . . 1 Assault . | . . . . . . Garrison 6 | . . . . . 6 Intercept . | . . . . . . Searches Triggered . | . . . . . . Construction Impeded . | . . . . . . Haulers Reinforced . | . . . . . . Active Scanning Responses . | . . . . . . Cargo Convoy Interrupts . | . . . . . . Stealth | -11 -10 -10 -10 -9 -8 --------- Run | Yrd Mat Min Exi Min Mat Distress Signals 2 | . 2 . . . . Communications Jammed . | . . . . . . Distress Signals . | . . . . . . Times Spotted 65 | . 20 7 . 6 32 Peak Tracking Total 5 | . 4 3 . 3 5 Tactical Retreats 5 | . 4 . . . 1 Traps | -11 -10 -10 -10 -9 -8 ------- Run | Yrd Mat Min Exi Min Mat Traps Triggered 3 | . 1 1 . . 1 Indirectly . | . . . . . . Trap Hack Attempts 5 | . . . . . 5 Triggered . | . . . . . . Disarmed . | . . . . . . Reprogrammed 1 | . . . . . 1 Reused . | . . . . . . Traps Extracted . | . . . . . . Installed . | . . . . . . Triggered . | . . . . . . Machines | -11 -10 -10 -10 -9 -8 ---------- Run | Yrd Mat Min Exi Min Mat Machines Disabled 1 | . . 1 . . . Max in Single Turn 1 | . . 1 . . . Machines Repaired . | . . . . . . Machines Dismantled . | . . . . . . Machines Sabotaged . | . . . . . . Overloaded Fab Kills . | . . . . . . Hacking | -11 -10 -10 -10 -9 -8 --------- Run | Yrd Mat Min Exi Min Mat Machines Accessed 24 | . 11 1 2 . 10 Terminals 16 | . 8 . . . 8 Fabricators . | . . . . . . Repair Stations 2 | . 1 . . . 1 Recycling Units 2 | . 2 . . . . Scanalyzers 1 | . . . . . 1 Garrison Access . | . . . . . . Total Hacks 76 | . 37 1 5 . 33 Successful 52 | . 22 1 5 . 24 Failed 24 | . 15 . . . 9 Catastrophic . | . . . . . . Database Lockouts . | . . . . . . Manual 58 | . 33 . 1 . 24 Terminals 57 | . 30 . . . 27 Fabricators . | . . . . . . Repair Stations 5 | . 2 . . . 3 Recycling Units 5 | . 5 . . . . Scanalyzers 3 | . . . . . 3 Garrison Access . | . . . . . . Terminal Hacks 8 | . . 1 5 . 2 Record 5 | . . . 4 . 1 Open Door 1 | . . 1 . . . Alert Level 1 | . . . . . 1 Derelict Proto ID Bank 1 | . . . 1 . . Fabricator Hacks . | . . . . . . Repair Station Hacks 4 | . 2 . . . 2 Scan Component 2 | . 1 . . . 1 Repair 2 | . 1 . . . 1 Recycling Unit Hacks 2 | . 2 . . . . Retrieve Components 2 | . 2 . . . . Scanalyzer 3 | . . . . . 3 Insert Component 1 | . . . . . 1 Analyze 2 | . . . . . 2 Garrison Access Hacks . | . . . . . . Unauthorized Hacks 35 | . 18 . . . 17 Terminals 33 | . 16 . . . 17 Assimilate 11 | . 5 . . . 6 Botnet 13 | . 6 . . . 7 Disrupt 1 | . 1 . . . . Operators 2 | . 1 . . . 1 Skim 6 | . 3 . . . 3 Fabricators . | . . . . . . Repair Stations . | . . . . . . Recycling Units 2 | . 2 . . . . Tunnel 2 | . 2 . . . . Scanalyzers . | . . . . . . Garrison Access . | . . . . . . Data Cores Recovered . | . . . . . . Used . | . . . . . . Hacking Detections 16 | . 7 . . . 9 Full Trace Events . | . . . . . . Feedback Events . | . . . . . . Feedback Blocked . | . . . . . . Robot Schematics Acquired . | . . . . . . Robots Built . | . . . . . . Authchips . | . . . . . . Time . | . . . . . . Total Robot Build Rating . | . . . . . . Part Schematics Acquired 1 | . . . . . 1 Parts Built . | . . . . . . Authchips . | . . . . . . Time . | . . . . . . Total Part Build Rating . | . . . . . . Parts Repaired 2 | . 1 . . . 1 Time 64 | . 26 . . . 38 Parts Recycled . | . . . . . . Recycled Matter . | . . . . . . Retrieved Matter . | . . . . . . Retrieved Components 20 | . 20 . . . . Parts Scanalyzed 1 | . . . . . 1 Part Schematics Acquired 1 | . . . . . 1 Parts Damaged . | . . . . . . Bothacking | -11 -10 -10 -10 -9 -8 ------------ Run | Yrd Mat Min Exi Min Mat Used RIF Installer . | . . . . . . Robots Hacked . | . . . . . . Non-combat . | . . . . . . Combat . | . . . . . . Robot Hacks Applied . | . . . . . . Relay Couplers Released . | . . . . . . Fabnet Peak Effective % . | . . . . . . Robots Rewired . | . . . . . . Allies Hacked . | . . . . . . Hacks Repelled . | . . . . . . Allies | -11 -10 -10 -10 -9 -8 -------- Run | Yrd Mat Min Exi Min Mat Total Allies 2 | . 1 1 . . . Largest Group 2 | . 1 2 2 1 1 Highest-Rated Group 41 | . 10 41 41 10 10 Highest-Rated Ally 31 | . 10 31 31 10 10 Total Orders 15 | . . 4 . 2 9 STAY 8 | . . 2 . 1 5 FOLLOW 7 | . . 2 . 1 4 Ally Attacks 8 | . . . . . 8 Total Damage 402 | . . . . . 402 Kills 2 | . . . . . 2 Allies Corrupted . | . . . . . . Allies Melted 1 | . . . . . 1 Turrets Deployed 1 | . . . . . 1 Intel | -11 -10 -10 -10 -9 -8 ------- Run | Yrd Mat Min Exi Min Mat Robot Analysis Total . | . . . . . . Derelict Logs Recovered 3 | . . 2 . 1 . Drone Launches . | . . . . . . Drone Recoveries . | . . . . . . Exploration | -11 -10 -10 -10 -9 -8 ------------- Run | Yrd Mat Min Exi Min Mat Turns Passed 11670 | . 3062 2064 1301 1017 4226 Spaces Moved 4144 | 1 960 799 539 305 1540 Core 1 | . . . . 1 . Treads 2337 | . 960 799 539 39 . Legs 776 | 1 . . . 265 510 Wheels 1024 | . . . . . 1024 Hover . | . . . . . . Flight 6 | . . . . . 6 Fastest Speed 115 | 120 160 240 240 240 115 Average Speed 225 | 120 165 240 240 320 232 Slowest Speed 850 | 120 240 240 240 850 815 Overloaded Moves . | . . . . . . Propulsion Burnouts . | . . . . . . Robots Hopped . | . . . . . . Cave-ins Triggered . | . . . . . . Exploration Rate (%) 65 | 2 99 100 72 33 89 Regions Visited 5 Branch Regions 3 Pre-discovered Areas 4 | . 2 . 1 1 . Known Exits Taken . | . . . . . . Unknown Exits Taken 5 | 1 1 1 1 1 . Scrap Searched 2 | . . 1 . 1 . Spaces Dug 25 | . 9 . . . 16 Terrain Destroyed 38 | . 22 . . . 16 Melee 16 | . . . . . 16 Projectile 22 | . 22 . . . . AOE . | . . . . . . Terrain Rammed . | . . . . . . Walls Destroyed . | . . . . . . Machines Disabled . | . . . . . . Actions | -11 -10 -10 -10 -9 -8 --------- Run | Yrd Mat Min Exi Min Mat Total 6082 | . 2214 912 549 327 2080 Wait 1549 | . 1112 81 . 2 354 Move 4139 | . 959 798 538 304 1540 Hop . | . . . . . . Pick Up 47 | . 13 6 6 3 19 Fast Attach 22 | . 5 . . . 17 Attach 25 | . 5 . 2 3 15 Detach 8 | . . . . . 8 Swap 20 | . 15 1 . 1 3 Drop 47 | . 8 5 3 1 30 Fire 109 | . 93 13 . 2 1 Melee 96 | . . . . 10 86 Ram 2 | . . . . . 2 Kick 1 | . . . . 1 . Crush 12 | . 4 8 . . . Escape Stasis . | . . . . . . Rewire . | . . . . . . Trap 5 | . . . . . 5 Miscellaneous . | . . . . . . Route ------- -11/Scrapyard -10/Materials (discovered 5 exits: [*Mat x3] / *Min x2) -10/Mines (discovered 4 exits: [*Mat x2] / *Exi / [*Sub]) -10/Exiles (discovered 2 exits: [*Min x2]) -9/Mines -8/Materials (discovered 3 exits: *Fac x3) History --------- Turn | Location | Event 1 | -11/Scrapyard | Discovered new exit (range 0) 1 | -11/Scrapyard | Entered Materials 303 | -10/Materials | Build established: Mutant 399 | -10/Materials | Discovered new exit (range 13) 417 | -10/Materials | Discovered new exit (range 14) 665 | -10/Materials | Discovered new exit (range 6) 726 | -10/Materials | Discovered new exit (range 16) 808 | -10/Materials | Repaired Assault Rifle 1915 | -10/Materials | Build established: Scavenger-Mutant 2837 | -10/Materials | Discovered new exit (range 5) 3063 | -10/Materials | Entered Mines 3063 | -10/Mines | Accompanied by 1 ally 3098 | -10/Mines | Met a Derelict bent on vengeance 3296 | -10/Mines | Learned Materials stockpile data 3397 | -10/Mines | Discovered new exit (range 6) 3792 | -10/Mines | Met a Derelict who couldn't figure out how to use a Trap Extractor 4266 | -10/Mines | Deemed a non-threat by the Exiles lab entrance 4266 | -10/Mines | Discovered new exit (range 5) 4595 | -10/Mines | Escorted by a lone wolf Derelict 4597 | -10/Mines | Discovered new exit (range 14) 4722 | -10/Mines | Discovered new exit (range 8) 5127 | -10/Mines | Entered Exiles 5127 | -10/Exiles | Accompanied by 2 allies 5185 | -10/Exiles | Met 8R-AWN 5226 | -10/Exiles | Met EX-HEX 5346 | -10/Exiles | Met EX-DEC 5771 | -10/Exiles | Learned location of Zion (-6) 5933 | -10/Exiles | Discovered new exit (range 17) 6073 | -10/Exiles | Met EX-BIN 6099 | -10/Exiles | Aligned with FarCom system 6102 | -10/Exiles | Given EX-Vault access code 6157 | -10/Exiles | Opened EX-Vault 6171 | -10/Exiles | Found Deploy-a-Sentry 6177 | -10/Exiles | Found Deploy-a-Sentry 6180 | -10/Exiles | Found Deploy-a-Sentry 6231 | -10/Exiles | Warned to stay clear of 0b10 Research branches 6392 | -10/Exiles | Discovered new exit (range 15) 6428 | -10/Exiles | Left Exiles lab with Deploy-a-Sentry 6428 | -10/Exiles | Entered Mines 6428 | -9/Mines | Accompanied by 1 ally 6433 | -9/Mines | Core integrity fell below 50% 6541 | -9/Mines | Core integrity fell below 20% 6581 | -9/Mines | Lost 4 parts (1p2n1w) 6735 | -9/Mines | Learned location of 1 exit from Materials 6834 | -9/Mines | Build established: Mutant 7238 | -9/Mines | Learned location of Storage (-7) 7247 | -9/Mines | Discovered new exit (range 8) 7445 | -9/Mines | Entered Materials 7445 | -8/Materials | Accompanied by 1 ally 7445 | -8/Materials | Evolved 4 slots: Utility x3, Weapon x1 7446 | -8/Materials | Identified exit to Factory 7759 | -8/Materials | Repaired Katana 7997 | -8/Materials | Garrison activated, responded to threat 8111 | -8/Materials | Met 7R-MNS 8323 | -8/Materials | Discovered exit to Factory (range 20) 8332 | -8/Materials | Build established: Gladiator 9270 | -8/Materials | Discovered exit to Factory (range 17) 9310 | -8/Materials | Garrison activated, responded to threat 11609 | -8/Materials | Core integrity fell below 50% 11630 | -8/Materials | DAS Turret deployed 11636 | -8/Materials | Core integrity fell below 20% 11660 | -8/Materials | Lost 9 parts (1p1n1u6w) 11671 | -8/Materials | Destroyed by G-47 Trooper with Particle Gun Last Messages --------------- 11617_ Critical hit (Burn: +37). 11618_ Imp. Ion Engine destroyed. 11623_ Dropped Deploy-a-Sentry. 11624_ Penetrated by Slug. 11624_ Hvy. EM Shotgun destroyed. 11627_ G-47 Trooper destroyed. 11627_ Hvy. EM Shotgun destroyed. 11629_ Penetrated by Slug. 11629_ Scythe destroyed. 11629_ Knocked back. 11630_ DAS Turret deployed. 11633_ Destroyed Lgt. Nuclear Core. 11639_ DAS Turret knocked back. 11641_ H-61 Shepherd destroyed. 11643_ G-47 Trooper destroyed. 11645_ DAS Turret critical meltdown. 11660_ Slammed into G-47 Trooper. 11661_ Critical hit (Burn: +37). 11666_ Slammed into G-47 Trooper. 11669_ Imp. Flight Unit destroyed. Map ----- +----------------------------------------------------+ | =+% #?######???????????????############??? | | !#[ !!] #? #???????????????# #???? | | # !!] # #???????????????# !]! """ ##### | | # !!] # """ #???????????????# !! """ # | | # + """ #???????????????# !! """ + | | # # """ #???????????????# # | | ####+## # #????????????####] # ### | | ### ###?######????????????# + "T" # #?? | | """"" #?# #?????????????????????# ## """ #%#?? | | """"" #?# #?????????????????????# ############+### | | """"" #?# #?????????????????????# #??# | | """"" #?# #?????????????????????# #??# """ """ """ | | """"" #?# #?????###??????????####+#### """ """ """ | | """"" #?# #?#####"#####??????# # """ """% "" | | """"" #?# #?# #??????# # % | | ### ### ######## # | | ####### %# # ## ##+#####+#### | | ??????# %*#[ # ## # | | ??????# T !!% % # """ ## """ + [ | | ??????# [;= % # """ ## """ #"" | | ??????# " % # """ ## """ #"T | | ??????## ## % % # ## """ #"" | | ???????# #######;%+## ?# """ # | | ???????# [ ###+#??# # | | ???????# % % #??######### [[ | | ???????# % @#??# #??# [[[ ##+# | | ???????# g #??# #??# [[[ ## | | ???????# #??# #### ##% | | ???????#w ############;###??#!!!%+ ## | | ???????# #??????????###????#!!! ## [! ## "" | | ???????# #?????????????????#!! ## !! ## "" | | ??????? ?????????????????# ## !! ## "" | | ??????? ?????????????????# ## ##### | | ??????? ?????????????????# ## ##### | | ??????# ?????????????????####### % ## | | ??????# ???????????????????????# " | | ??????## #???????????????????????# # | | ???????# ????????????????????????####### # | | ???????+ ??????????????????????????????# ##### | | ???????? < ??????????????????????????????# < #???# | | ???????? ??????????????????????????????# #???# | | ?????????????????????????????????????????#####???# | | ?????????????????????????????????????????????????# | | ?????????????????????????????????????????????????# | | ?????????????????????????????????????????????????# | | ?????????????????????????????????????????????????# | | ?????????????????????????????????????????????????# | | ?????????????????????????????????????????????????# | | ?????????????????????????????????????????????????? | | ?????????????????????????????????????????????????? | +----------------------------------------------------+ Best States ------------- Heat Dissipation 31 Energy Generation 14 Energy Capacity 265 Matter Stores 300 Matter Capacity 300 Sight Range 20 Robot Scan Range 14 Terrain Scan Density 10 Armor Coverage 150 Core Shielding 20 Utility Shielding 66 Melee Speed Boost 20 Evasion (%) 40 Recoil Reduction 2 Offensive Hacking 10 Item Schematics ----------------- Imp. Flight Unit | -8/Materials | Scanalyzed Robot Schematics ------------------ None Fabricated ------------ Nothing Alien Tech Used ----------------- None Achievements -------------- None Challenges ------------ None Game ------ Seed TimingSwordBlaster Manual? 0 Play Time 00:50:19 Cumulative 116.7 hours Start 2024.11.19 @ 08:54:48 End 2024.11.19 @ 11:00:47 Sessions 1 Manual Loads 0 Difficulty Rogue Special Mode None Game No. 214 Rogue 214 Adventurer 0 Explorer 0 Win Type - Total 0 Types 0/0/0/0/0/0/0/0/0 Lore% 42 Gallery% 40 Achievement% 35 Wizard Run 0 Options --------- Layout 0 ASCII 0 Keyboard 0 Movement Mouse Keybinds 0 Fullscreen 1 Font 24/Smallcaps Map View 91x25 Zoom Use 84% Tactical HUD 1 Map Filters NONE Filters NONE Steam 1 RUN: e9e9a3d3-c401-444e-adbc-8fc26fc5d2c4